[Event "22nd OIBM 2018"]
[Site "Gmund am Tegernsee"]
[Date "2018.11.01"]
[Round "6"]
[White "Schleich, Theodor"]
[Black "Jahnz, Fabian"]
[Result "0-1"]
[ECO "D00"]
[WhiteElo "1992"]
[BlackElo "2244"]
[Annotator "ChessBase"]
[PlyCount "50"]
[EventDate "2018.10.27"]
[EventType "swiss"]
[EventCountry "GER"]
[SourceTitle "playchess.com"]
[Source "ChessBase"]
[SourceQuality "1"]
[TimeControl "40/5400+30:1800+30"]

1. d4 {[%emt 0:00:00]} d5 {[%emt 0:00:00]} 2. Bg5 {[%emt 0:00:00]} f6 {[%emt 0:00:55]} 3. Bd2 {[%emt 0:00:00]} Nc6 {[%emt 0:00:49]} 4. e3 {[%emt 0:00:00]} e5 {[%emt 0:01:07]} 5. Bb5 {[%emt 0:00:00]} Bd6 {[%emt 0:10:36]} 6. c4 {[%emt 0:00:10]} dxc4 {[%emt 0:05:56]} 7. Bxc4 {[%emt 0:02:52]} exd4 {[%emt 0:14:03]} 8. Bxg8 {[%emt 0:04:01]} dxe3 {[%emt 0:07:44]} 9. fxe3 {[%emt 0:00:06]} Rxg8 {[%emt 0:00:48]} 10. Qh5+ {[%emt 0:00:02]} Kf8 {[%emt 0:02:35]} 11. Qxh7 {[%emt 0:00:10]} Qe7 {[%emt 0:04:31]} 12. Nf3 {[%emt 0:01:05]} Ne5 {[%emt 0:06:57]} 13. O-O {[%emt 0:00:13]} Nxf3+ {[%emt 0:02:17]} 14. Rxf3 {[%emt 0:00:02]} Bg4 {[%emt 0:01:57]} 15. Rf1 {[%emt 0:01:16]} Kf7 {[%emt 0:06:59]} 16. Qc2 {[%emt 0:04:52]} Rh8 {[%emt 0:03:02]} 17. g3 {[%emt 0:00:05]} Qe5 {[%emt 0:05:28]} 18. Be1 {[%emt 0:04:23]} Rh5 {[%emt 0:03:58]} 19. Nc3 {[%emt 0:01:45]} Rah8 {[%emt 0:00:36]} 20. Ne4 {[%emt 0:00:49]} Bf5 {[%emt 0:08:06]} 21. Nxd6+ {[%emt 0:00:16]} cxd6 {[%emt 0:00:12]} 22. Qb3+ {[%emt 0:09:00]} Kg6 {[%emt 0:00:52]} 23. Rf2 {[%emt 0:01:07]} Be4 {[%emt 0:00:54]} 24. Rd2 {[%emt 0:00:42]} Rxh2 {[%emt 0:01:48]} 25. Rxh2 {[%emt 0:01:21]} Rxh2 {[%emt 0:00:05]} 0-1

[Event "22nd OIBM 2018"]
[Site "Gmund am Tegernsee"]
[Date "2018.11.01"]
[Round "6"]
[White "Poelt, Christoph"]
[Black "Bente, Bjoern"]
[Result "1/2-1/2"]
[ECO "E01"]
[WhiteElo "1987"]
[BlackElo "2228"]
[Annotator "NA"]
[PlyCount "54"]
[EventDate "2018.10.27"]
[EventType "swiss"]
[EventCountry "GER"]
[SourceTitle "playchess.com"]
[Source "ChessBase"]
[SourceQuality "1"]
[TimeControl "40/5400+30:1800+30"]

1. d4 {[%emt 0:00:00]} Nf6 {[%emt 0:00:00]} 2. c4 {[%emt 0:00:00]} e6 {[%emt 0:00:00]} 3. g3 {[%emt 0:00:00]} d5 {[%emt 0:00:00]} 4. Bg2 {[%emt 0:00:06]} Bb4+ {[%emt 0:00:00]} 5. Bd2 {[%emt 0:00:12]} Bd6 {[%emt 0:00:04]} 6. Nf3 {[%emt 0:00:34]} O-O {[%emt 0:00:14]} 7. O-O {[%emt 0:00:47]} c6 {[%emt 0:00:10]} 8. Qc2 {[%emt 0:01:07]} Ne4 {[%emt 0:00:13]} 9. Bf4 {[%emt 0:09:43]} Bxf4 {[%emt 0:00:08]} 10. gxf4 {[%emt 0:00:07]} Nd7 {[%emt 0:00:12]} 11. e3 {[%emt 0:01:50]} b6 {[%emt 0:02:02]} 12. cxd5 {[%emt 0:11:32]} cxd5 {[%emt 0:00:05]} 13. Nbd2 {[%emt 0:04:23]} Nxd2 {[%emt 0:02:00]} 14. Qxd2 {[%emt 0:01:49]} Qe7 {[%emt 0:03:58]} 15. Rfc1 {[%emt 0:02:34]} Nf6 {[%emt 0:00:59]} 16. Ne5 {[%emt 0:04:18]} Bb7 {[%emt 0:00:17]} 17. Qc2 {[%emt 0:06:15]} Rfc8 {[%emt 0:02:52]} 18. Qa4 {[%emt 0:03:42]} Rc7 {[%emt 0:01:41]} 19. Nd3 {[%emt 0:04:30]} a5 {[%emt 0:07:07]} 20. Rxc7 {[%emt 0:02:12]} Qxc7 {[%emt 0:00:04]} 21. Rc1 {[%emt 0:00:13]} Qd8 {[%emt 0:00:15]} 22. Qb3 {[%emt 0:06:37]} Rc8 {[%emt 0:03:47]} 23. Rxc8 {[%emt 0:02:28]} Bxc8 {[%emt 0:00:07]} 24. Qc2 {[%emt 0:01:27]} Bb7 {[%emt 0:01:44]} 25. Ne5 {[%emt 0:01:50]} Qc8 {[%emt 0:04:30]} 26. Qxc8+ {[%emt 0:02:00]} Bxc8 {[%emt 0:00:08]} 27. Kf1 {[%emt 0:02:49]} Ne8 {[%emt 0:05:16]} 1/2-1/2

[Event "22nd OIBM 2018"]
[Site "Gmund am Tegernsee"]
[Date "2018.11.02"]
[Round "7"]
[White "Meins, Gerlef"]
[Black "Renner, Kai"]
[Result "1/2-1/2"]
[ECO "A06"]
[WhiteElo "2408"]
[BlackElo "2159"]
[Annotator "NA"]
[PlyCount "48"]
[EventDate "2018.10.27"]
[EventType "swiss"]
[EventCountry "GER"]
[SourceTitle "playchess.com"]
[Source "ChessBase"]
[SourceQuality "1"]
[TimeControl "40/5400+30:1800+30"]

1. Nf3 {[%emt 0:00:00]} d5 {[%emt 0:00:00]} 2. g3 {[%emt 0:00:01]} Nf6 {[%emt 0:00:03]} 3. Bg2 {[%emt 0:00:06]} e6 {[%emt 0:00:31]} 4. O-O {[%emt 0:00:18]} c5 {[%emt 0:05:19]} 5. c4 {[%emt 0:07:12]} d4 {[%emt 0:05:12]} 6. e3 {[%emt 0:01:24]} Nc6 {[%emt 0:11:02] LiveBook: 298 Games} 7. exd4 {[%emt 0:00:36]} cxd4 {[%emt 0:00:20]} 8. d3 {[%emt 0:01:14]} Be7 {[%emt 0:00:28]} 9. Bg5 {[%emt 0:17:12]} O-O {[%emt 0:04:10]} 10. a3 {[%emt 0:06:44]} a5 {[%emt 0:03:00]} 11. Nbd2 {[%emt 0:00:32]} Nd7 {[%emt 0:06:49]} 12. Bxe7 {[%emt 0:00:20]} Qxe7 {[%emt 0:00:14]} 13. Qe2 {[%emt 0:06:34]} Nc5 {[%emt 0:07:42]} 14. Ne4 {[%emt 0:17:07]} Nxe4 $14 {[%emt 0:04:29]} 15. Qxe4 {[%emt 0:01:45]} Rd8 {[%emt 0:03:24]} 16. Rfe1 {[%emt 0:11:12]} a4 {[%emt 0:08:14]} 17. Rac1 {[%emt 0:04:34]} Ra5 {[%emt 0:04:35]} 18. Nd2 {[%emt 0:04:02]} Re5 {[%emt 0:08:36]} 19. Qf3 {[%emt 0:00:44]} Rxe1+ {[%emt 0:00:35]} 20. Rxe1 {[%emt 0:00:02]} Bd7 {[%emt 0:03:46]} 21. Qf4 {[%emt 0:01:59]} Be8 {[%emt 0:03:16]} 22. Nf3 {[%emt 0:07:51]} h6 {[%emt 0:05:24]} 23. h4 {[%emt 0:03:55]} Qc5 {[%emt 0:01:57]} 24. Qd2 {[%emt 0:01:06]} b5 {[%emt 0:03:29]} 1/2-1/2

[Event "22nd OIBM 2018"]
[Site "Gmund am Tegernsee"]
[Date "2018.11.02"]
[Round "7"]
[White "Zude, Arno"]
[Black "Gueci, Tea"]
[Result "1-0"]
[ECO "B80"]
[WhiteElo "2349"]
[BlackElo "2166"]
[Annotator "NA"]
[PlyCount "65"]
[EventDate "2018.10.27"]
[EventType "swiss"]
[EventCountry "GER"]
[SourceTitle "playchess.com"]
[Source "ChessBase"]
[SourceQuality "1"]
[TimeControl "40/5400+30:1800+30"]

1. e4 {[%emt 0:00:00]} c5 {[%emt 0:00:00]} 2. Nf3 {[%emt 0:00:00]} e6 {[%emt 0:00:00]} 3. d4 {[%emt 0:00:00]} cxd4 {[%emt 0:00:00]} 4. Nxd4 {[%emt 0:00:01]} Nf6 {[%emt 0:00:00]} 5. Nc3 {[%emt 0:00:17]} d6 {[%emt 0:00:00]} 6. Be3 {[%emt 0:00:57]} Be7 {[%emt 0:00:00]} 7. f3 {[%emt 0:01:20]} O-O {[%emt 0:00:12]} 8. Qd2 {[%emt 0:00:23]} e5 {[%emt 0:00:12]} 9. Nb3 {[%emt 0:00:45]} Be6 {[%emt 0:00:07]} 10. O-O-O {[%emt 0:01:17]} a5 {[%emt 0:00:12]} 11. a4 {[%emt 0:01:53]} Nc6 {[%emt 0:00:16]} 12. g4 {[%emt 0:02:43]} Nb4 {[%emt 0:00:16]} 13. g5 {[%emt 0:01:57] B90: Sicilian Najdorf: Unusual White 6th moves, 6 Be3 Ng4 and 6 Be3 e5} Nh5 {[%emt 0:00:14]} 14. Rg1 {[%emt 0:01:18]} f5 {[%emt 0:00:45] [#]} 15. Bh3 $146 {[%emt 0:20:02]} ({Predecessor:} 15. h4 Rc8 16. Bb5 Kh8 17. Kb1 fxe4 18. fxe4 d5 19. Qh2 Nf4 20. Rgf1 Bd6 21. Bxf4 exf4 22. exd5 {0-1 (32) Vallejo Pons,F (2696)-Morozevich,A (2750) Novi Sad 2009}) 15... Qc8 {[%emt 0:08:50]} 16. Kb1 {[%emt 0:10:14]} fxe4 {[%emt 0:08:38]} 17. Bxe6+ {[%emt 0:00:29]} Qxe6 {[%emt 0:00:03]} 18. fxe4 {[%emt 0:00:16]} Rac8 {[%emt 0:10:44]} 19. Nxa5 {[%emt 0:19:09]} b5 {[%emt 0:06:50]} 20. Nd5 {[%emt 0:02:42]} Nxc2 {[%emt 0:00:45]} 21. axb5 {[%emt 0:00:41]} Nxe3 {[%emt 0:12:33]} 22. Qxe3 {[%emt 0:01:47]} Rc5 {[%emt 0:04:02]} 23. Nc6 {[%emt 0:01:18]} Bd8 $18 {[%emt 0:02:50]} 24. Qb3 {[%emt 0:17:23]} Nf4 {[%emt 0:19:44]} 25. Nde7+ {[%emt 0:05:54]} Kf7 {[%emt 0:00:42]} 26. Qxe6+ {[%emt 0:00:18]} Kxe6 {[%emt 0:00:15]} 27. Nf5 {[%emt 0:00:09]} Bc7 {[%emt 0:01:34]} 28. Rc1 {[%emt 0:03:40]} Nd3 {[%emt 0:08:49]} 29. Nxg7+ {[%emt 0:01:42]} Kf7 {[%emt 0:02:26]} 30. Rxc5 {[%emt 0:00:03]} Nxc5 {[%emt 0:00:13]} 31. Nh5 {[%emt 0:00:35]} Nxe4 {[%emt 0:03:15]} 32. Rf1+ {[%emt 0:00:24]} Ke8 {[%emt 0:01:49]} 33. Ng7+ {[%emt 0:00:10]} 1-0

[Event "22nd OIBM 2018"]
[Site "Gmund am Tegernsee"]
[Date "2018.11.02"]
[Round "7"]
[White "Singer, Christoph"]
[Black "Popvasilev, Kaloyan"]
[Result "1/2-1/2"]
[ECO "A04"]
[WhiteElo "2344"]
[BlackElo "2080"]
[Annotator "NA"]
[PlyCount "103"]
[EventDate "2018.10.27"]
[EventType "swiss"]
[EventCountry "GER"]
[SourceTitle "playchess.com"]
[Source "ChessBase"]
[SourceQuality "1"]
[TimeControl "40/5400+30:1800+30"]

1. Nf3 {[%emt 0:00:00]} c5 {[%emt 0:01:38]} 2. e3 {[%emt 0:00:29]} Nf6 {[%emt 0:01:02]} 3. d4 {[%emt 0:00:04]} e6 {[%emt 0:01:03]} 4. Be2 {[%emt 0:04:30]} b6 {[%emt 0:03:05]} 5. O-O {[%emt 0:04:06]} Bb7 {[%emt 0:00:31]} 6. b3 {[%emt 0:00:22] A46: 1 d4 Nf6 2 Nf3 e6: Torre, London and Colle Systems} (6. c4 Be7 7. Nc3 d5 8. cxd5 Nxd5 9. Bb5+ Bc6 10. Bxc6+ Nxc6 11. Nxd5 Qxd5 12. dxc5 Qxd1 13. Rxd1 Bxc5 14. Bd2 Ke7 {½-½ (26) Dizdarevic,E (2529)-Dvirnyy,D (2507) Bol 2014}) 6... d5 {[%emt 0:02:20]} 7. Bb2 {[%emt 0:00:32]} Be7 {[%emt 0:00:26]} 8. dxc5 {[%emt 0:02:43]} bxc5 {[%emt 0:01:07]} 9. c4 {[%emt 0:00:14]} O-O {[%emt 0:01:06]} 10. Nc3 {[%emt 0:02:37]} Na6 $146 {[%emt 0:04:59]} ({Predecessor:} 10... Nbd7 11. cxd5 exd5 12. Qc2 Rc8 13. Rfd1 Bd6 {½-½ (71) Omeri,S (2221)-Loiacono,L (2243) Villorba 2018}) 11. Rc1 {[%emt 0:04:49]} Rc8 {[%emt 0:02:34]} 12. Re1 {[%emt 0:07:20]} Qa5 {[%emt 0:10:36]} 13. Qd2 {[%emt 0:09:40]} Kh8 {[%emt 0:06:48]} 14. Red1 {[%emt 0:04:31]} Rcd8 {[%emt 0:07:42]} 15. cxd5 {[%emt 0:10:33]} Nxd5 {[%emt 0:07:04]} 16. Nxd5 {[%emt 0:06:07]} Qxd2 {[%emt 0:00:08]} 17. Rxd2 {[%emt 0:00:27]} Rxd5 {[%emt 0:06:16]} 18. Rxd5 {[%emt 0:04:53]} exd5 {[%emt 0:00:06]} 19. Ba3 {[%emt 0:01:50]} Rc8 {[%emt 0:25:12]} 20. Ne5 {[%emt 0:02:43]} f6 {[%emt 0:05:26]} 21. Bxa6 {[%emt 0:01:56]} Bxa6 {[%emt 0:00:04]} 22. Nd7 {[%emt 0:00:11]} d4 {[%emt 0:01:45]} 23. Nxc5 {[%emt 0:05:52]} Bxc5 {[%emt 0:03:40]} 24. Rxc5 {[%emt 0:04:31]} dxe3 {[%emt 0:01:08]} 25. fxe3 {[%emt 0:00:53]} Bb7 {[%emt 0:00:11]} 26. Rb5 {[%emt 0:08:39]} Rc7 {[%emt 0:00:20]} 27. Bc5 {[%emt 0:00:44]} a6 {[%emt 0:00:40]} 28. Rb6 {[%emt 0:01:24]} Kg8 {[%emt 0:01:02]} 29. b4 {[%emt 0:00:20]} a5 {[%emt 0:03:56]} 30. a3 {[%emt 0:01:36]} axb4 {[%emt 0:00:12]} 31. axb4 {[%emt 0:00:01]} Kf7 {[%emt 0:00:58]} 32. Kf2 {[%emt 0:00:10]} Be4 {[%emt 0:00:34]} 33. g4 {[%emt 0:00:26]} Rd7 {[%emt 0:00:47]} 34. Ke2 {[%emt 0:03:09]} Bb7 {[%emt 0:00:30]} 35. Bd6 {[%emt 0:01:11]} Be4 {[%emt 0:00:36]} 36. Bc5 {[%emt 0:00:05]} Bb7 {[%emt 0:00:04]} 37. Bd4 {[%emt 0:02:27]} Be4 {[%emt 0:00:09]} 38. h4 {[%emt 0:01:19]} Rc7 {[%emt 0:01:50]} 39. Bc5 {[%emt 0:01:45]} Rd7 {[%emt 0:00:31]} 40. Rb8 {[%emt 0:02:17]} Ke6 {[%emt 0:01:20]} 41. Rg8 {[%emt 0:04:17]} Kf7 {[%emt 0:20:20]} 42. Rc8 {[%emt 0:00:26]} Kg6 {[%emt 0:01:38]} 43. Bd4 {[%emt 0:02:48]} Rb7 $14 {[%emt 0:00:45]} 44. Bc5 {[%emt 0:06:05]} Rd7 {[%emt 0:00:23]} 45. Rb8 {[%emt 0:04:08]} h5 {[%emt 0:00:33]} 46. gxh5+ {[%emt 0:00:17]} Kxh5 {[%emt 0:00:05]} 47. Rh8+ {[%emt 0:00:20]} Kg4 {[%emt 0:00:13]} 48. Bd4 {[%emt 0:01:15]} Rb7 49. Bc5 {[%emt 0:02:50]} Rd7 {[%emt 0:00:39]} 50. Bd4 {[%emt 0:00:36]} Rb7 {[%emt 0:00:18]} 51. Bc5 {[%emt 0:00:23]} Rd7 {[%emt 0:00:05]} 52. Bd4 {[%emt 0:00:05]} 1/2-1/2

[Event "22nd OIBM 2018"]
[Site "Gmund am Tegernsee"]
[Date "2018.11.02"]
[Round "7"]
[White "Wacker, Peter"]
[Black "Gohla, Ulf"]
[Result "1/2-1/2"]
[ECO "C73"]
[WhiteElo "2313"]
[BlackElo "2158"]
[Annotator "ChessBase"]
[PlyCount "95"]
[EventDate "2018.10.27"]
[EventType "swiss"]
[EventCountry "GER"]
[SourceTitle "playchess.com"]
[Source "ChessBase"]
[SourceQuality "1"]
[TimeControl "40/5400+30:1800+30"]

1. e4 {[%emt 0:00:00]} e5 {[%emt 0:00:00]} 2. Nf3 {[%emt 0:00:00]} Nc6 {[%emt 0:00:00]} 3. Bb5 {[%emt 0:00:00]} a6 {[%emt 0:00:00]} 4. Ba4 {[%emt 0:00:00]} d6 {[%emt 0:00:00]} 5. Bxc6+ {[%emt 0:00:14]} bxc6 {[%emt 0:00:00]} 6. d4 {[%emt 0:00:06]} f6 {[%emt 0:03:38]} 7. Be3 {[%emt 0:00:19]} Ne7 {[%emt 0:03:39]} 8. Nc3 {[%emt 0:00:06]} Bg4 {[%emt 0:00:46]} 9. h3 {[%emt 0:02:28]} Bh5 {[%emt 0:00:17]} 10. Qe2 {[%emt 0:00:08]} Qb8 {[%emt 0:03:36]} 11. O-O-O {[%emt 0:05:03]} Qb7 {[%emt 0:02:20]} 12. dxe5 {[%emt 0:02:21]} fxe5 {[%emt 0:01:09]} 13. g4 {[%emt 0:02:24]} Bf7 {[%emt 0:00:03]} 14. Ng5 {[%emt 0:00:30]} Bg8 {[%emt 0:01:36]} 15. f4 {[%emt 0:00:36]} exf4 {[%emt 0:10:56]} 16. Bxf4 {[%emt 0:01:26]} h6 {[%emt 0:00:06]} 17. Nf3 {[%emt 0:00:33]} g5 {[%emt 0:17:16]} 18. Be3 {[%emt 0:06:03]} Bg7 {[%emt 0:00:13]} 19. Bd4 {[%emt 0:02:41]} Bxd4 {[%emt 0:05:03]} 20. Rxd4 {[%emt 0:00:02]} c5 {[%emt 0:04:28]} 21. Ra4 {[%emt 0:06:04]} a5 {[%emt 0:20:29]} 22. h4 {[%emt 0:05:24]} gxh4 {[%emt 0:01:15]} 23. Rxh4 {[%emt 0:03:07]} Ng6 {[%emt 0:01:26]} 24. Rh2 {[%emt 0:01:31]} Qa6 {[%emt 0:01:51]} 25. Qe3 {[%emt 0:09:12]} O-O-O {[%emt 0:05:02]} 26. Rh1 {[%emt 0:16:09]} Be6 {[%emt 0:02:20]} 27. Rg1 {[%emt 0:00:02]} Rde8 {[%emt 0:03:38]} 28. Qd3 {[%emt 0:08:25]} Kb7 {[%emt 0:01:50]} 29. Ra3 {[%emt 0:05:28]} Bc4 {[%emt 0:00:48]} 30. Qd2 {[%emt 0:00:48]} Ne5 {[%emt 0:00:28]} 31. Nxe5 {[%emt 0:04:05]} Rxe5 {[%emt 0:00:02]} 32. b3 {[%emt 0:00:40]} Be6 {[%emt 0:01:09]} 33. Rh1 {[%emt 0:06:06]} Bxg4 {[%emt 0:04:17]} 34. Rxh6 {[%emt 0:00:06]} Rxh6 {[%emt 0:00:14]} 35. Qxh6 {[%emt 0:00:02]} Be6 {[%emt 0:01:37]} 36. Kb2 {[%emt 0:00:29]} Qb6 {[%emt 0:00:32]} 37. Qd2 {[%emt 0:02:26]} Ka6 {[%emt 0:02:55]} 38. Kc1 {[%emt 0:01:27]} Qb4 {[%emt 0:01:39]} 39. Ra4 {[%emt 0:00:45]} Qb6 {[%emt 0:00:01]} 40. Nd5 {[%emt 0:04:11]} Bxd5 {[%emt 0:00:17]} 41. exd5 {[%emt 0:30:02]} Re8 {[%emt 0:31:13]} 42. a3 {[%emt 0:05:50]} Ra8 {[%emt 0:00:00]} 43. b4 {[%emt 0:00:00]} Kb7 {[%emt 0:00:00]} 44. bxc5 {[%emt 0:00:00]} Qxc5 {[%emt 0:00:00]} 45. Qd3 {[%emt 0:00:00]} Qg1+ {[%emt 0:00:00]} 46. Kb2 {[%emt 0:00:00]} Qb6+ {[%emt 0:00:00]} 47. Qb3 {[%emt 0:00:00]} Qxb3+ {[%emt 0:00:00]} 48. Kxb3 {[%emt 0:00:00]} 1/2-1/2

[Event "22nd OIBM 2018"]
[Site "Gmund am Tegernsee"]
[Date "2018.11.02"]
[Round "7"]
[White "Rietze, Clemens"]
[Black "Jerie, Sven"]
[Result "1/2-1/2"]
[ECO "A46"]
[WhiteElo "2293"]
[BlackElo "2133"]
[Annotator "NA"]
[PlyCount "39"]
[EventDate "2018.10.27"]
[EventType "swiss"]
[EventCountry "GER"]
[SourceTitle "playchess.com"]
[Source "ChessBase"]
[SourceQuality "1"]
[TimeControl "40/5400+30:1800+30"]

1. d4 {[%emt 0:00:00]} Nf6 {[%emt 0:00:00]} 2. Nf3 {[%emt 0:00:30]} e6 {[%emt 0:03:18]} 3. g3 {[%emt 0:00:25]} b5 {[%emt 0:02:27]} 4. Qd3 {[%emt 0:05:00]} b4 {[%emt 0:01:42]} 5. a3 {[%emt 0:04:14]} Ba6 {[%emt 0:05:59]} 6. Qd1 {[%emt 0:05:39]} bxa3 {[%emt 0:01:57]} 7. Nxa3 {[%emt 0:00:19]} Be7 {[%emt 0:02:21]} 8. Bg2 {[%emt 0:00:33]} Bb7 {[%emt 0:00:23]} 9. O-O {[%emt 0:04:06]} O-O {[%emt 0:01:40]} 10. c3 {[%emt 0:07:14]} c5 {[%emt 0:07:44]} 11. dxc5 {[%emt 0:01:45]} Bxc5 {[%emt 0:00:26]} 12. b4 {[%emt 0:00:24]} Be7 {[%emt 0:00:47]} 13. Nd4 {[%emt 0:13:00]} Bxg2 {[%emt 0:01:32]} 14. Kxg2 {[%emt 0:00:03]} Qc8 {[%emt 0:10:01]} 15. Bd2 {[%emt 0:14:13]} Ne4 {[%emt 0:08:10]} 16. Qc2 {[%emt 0:01:22]} Nxd2 $15 {[%emt 0:01:26]} 17. Qxd2 {[%emt 0:00:02]} Nc6 {[%emt 0:00:49]} 18. Rfc1 {[%emt 0:04:32]} Nxd4 {[%emt 0:05:49]} 19. Qxd4 {[%emt 0:04:30]} a5 {[%emt 0:04:58]} 20. Qe4 {[%emt 0:09:42]} 1/2-1/2

[Event "22nd OIBM 2018"]
[Site "Gmund am Tegernsee"]
[Date "2018.11.02"]
[Round "7"]
[White "Imnadze, Nato"]
[Black "Mueller, Frank"]
[Result "1-0"]
[ECO "B47"]
[WhiteElo "2291"]
[BlackElo "2256"]
[Annotator "NA"]
[PlyCount "71"]
[EventDate "2018.10.27"]
[EventType "swiss"]
[EventCountry "GER"]
[SourceTitle "playchess.com"]
[Source "ChessBase"]
[SourceQuality "1"]
[TimeControl "40/5400+30:1800+30"]

1. e4 {[%emt 0:00:00]} c5 {[%emt 0:00:00]} 2. Nf3 {[%emt 0:00:00]} e6 {[%emt 0:00:12]} 3. d4 {[%emt 0:00:04]} cxd4 {[%emt 0:00:13]} 4. Nxd4 {[%emt 0:00:04]} Nc6 {[%emt 0:00:25]} 5. Nc3 {[%emt 0:00:09]} Qc7 {[%emt 0:00:41]} 6. g3 {[%emt 0:00:39]} d6 {[%emt 0:01:09]} 7. Bg2 {[%emt 0:03:01]} Bd7 {[%emt 0:00:12] B47: Sicilian: Taimanov: 5 Nc3 Qc7 6 f4, 6 g3 and 6 Be2} 8. O-O {[%emt 0:05:37]} Nf6 {[%emt 0:02:32]} 9. Re1 {[%emt 0:01:52]} Be7 {[%emt 0:02:08]} 10. Ncb5 {[%emt 0:04:43]} Qb8 {[%emt 0:01:39]} 11. Nxc6 $146 {[%emt 0:02:26]} ({Predecessor:} 11. c4 Na5 12. b3 a6 13. Na3 O-O 14. Nac2 b5 15. cxb5 axb5 {1-0 (41) Votava,J (2546)-Novikov,S (2534) Germany 2008}) 11... Bxc6 {[%emt 0:01:26]} 12. Nd4 {[%emt 0:00:21]} Bd7 {[%emt 0:03:14]} 13. c4 {[%emt 0:04:45]} O-O {[%emt 0:01:34]} 14. b3 {[%emt 0:00:41]} a6 {[%emt 0:05:39]} 15. Ba3 {[%emt 0:07:05]} Re8 {[%emt 0:02:56]} 16. Rc1 {[%emt 0:04:38]} Qa7 {[%emt 0:01:27]} 17. c5 {[%emt 0:17:56]} dxc5 {[%emt 0:05:42]} 18. e5 {[%emt 0:01:56]} Nd5 {[%emt 0:01:34]} 19. Nf5 {[%emt 0:01:33]} exf5 {[%emt 0:01:56]} 20. Bxd5 {[%emt 0:02:51]} Be6 {[%emt 0:03:50]} 21. Qf3 {[%emt 0:04:16]} Rab8 {[%emt 0:03:36]} 22. Red1 {[%emt 0:03:40]} Red8 {[%emt 0:05:23]} 23. Bxe6 {[%emt 0:07:01]} fxe6 {[%emt 0:00:32]} 24. g4 {[%emt 0:00:50]} g6 {[%emt 0:01:58]} 25. gxf5 {[%emt 0:00:34]} gxf5 $17 {[%emt 0:00:21]} 26. Rd6 {[%emt 0:04:58]} Bxd6 {[%emt 0:05:17]} 27. exd6 {[%emt 0:00:12]} b6 {[%emt 0:00:33]} 28. Bb2 {[%emt 0:00:33]} Rb7 {[%emt 0:03:29]} 29. Kh1 {[%emt 0:05:44]} Rg7 {[%emt 0:04:59]} 30. Bxg7 {[%emt 0:01:53]} Kxg7 {[%emt 0:00:57]} 31. Rg1+ {[%emt 0:00:40]} Kf6 {[%emt 0:07:43]} 32. Qf4 {[%emt 0:01:14]} Qa8+ {[%emt 0:02:05]} 33. f3 {[%emt 0:00:30]} Rg8 {[%emt 0:02:39]} 34. Rxg8 {[%emt 0:02:03]} Qxg8 {[%emt 0:00:20]} 35. Qh4+ {[%emt 0:00:04]} Ke5 {[%emt 0:01:47]} 36. d7 {[%emt 0:00:20]} 1-0

[Event "22nd OIBM 2018"]
[Site "Gmund am Tegernsee"]
[Date "2018.11.02"]
[Round "7"]
[White "Bussard, Christian"]
[Black "Kick, Joachim"]
[Result "0-1"]
[ECO "A20"]
[WhiteElo "2283"]
[BlackElo "2070"]
[Annotator "NA"]
[PlyCount "66"]
[EventDate "2018.10.27"]
[EventType "swiss"]
[EventCountry "GER"]
[SourceTitle "playchess.com"]
[Source "ChessBase"]
[SourceQuality "1"]
[TimeControl "40/5400+30:1800+30"]

1. c4 {[%emt 0:00:00]} e5 {[%emt 0:02:50]} 2. g3 {[%emt 0:00:00]} Nf6 {[%emt 0:00:06]} 3. Bg2 {[%emt 0:00:00]} c6 {[%emt 0:00:05]} 4. d3 {[%emt 0:05:20]} d5 {[%emt 0:03:18]} 5. cxd5 {[%emt 0:00:06]} cxd5 {[%emt 0:00:05]} 6. Nc3 {[%emt 0:00:08]} Nc6 {[%emt 0:13:48]} 7. Bd2 $15 {[%emt 0:17:35]} Be7 {[%emt 0:10:49]} 8. Nf3 {[%emt 0:00:31]} O-O {[%emt 0:01:24]} 9. O-O {[%emt 0:00:04]} h6 {[%emt 0:02:26]} 10. a3 {[%emt 0:05:37]} Bf5 {[%emt 0:14:44]} 11. b4 {[%emt 0:05:24]} e4 {[%emt 0:01:01]} 12. Ne1 {[%emt 0:03:53]} Rc8 {[%emt 0:05:07]} 13. Na4 {[%emt 0:13:27]} b6 {[%emt 0:05:24]} 14. Nb2 {[%emt 0:01:51]} Qd7 {[%emt 0:01:14]} 15. Bf4 {[%emt 0:06:11]} Rfd8 {[%emt 0:02:09]} 16. Nc2 {[%emt 0:00:42]} b5 {[%emt 0:08:27]} 17. f3 {[%emt 0:12:19]} exf3 {[%emt 0:02:37]} 18. Bxf3 {[%emt 0:03:13]} d4 {[%emt 0:00:18]} 19. Ne1 {[%emt 0:05:40]} Nd5 {[%emt 0:00:31]} 20. Bxd5 {[%emt 0:03:02]} Qxd5 {[%emt 0:00:07]} 21. Nf3 {[%emt 0:01:32]} Bh3 {[%emt 0:01:36]} 22. Rf2 {[%emt 0:00:18]} g5 {[%emt 0:09:32]} 23. Bd2 {[%emt 0:00:31]} Ne5 {[%emt 0:00:24]} 24. Nxe5 {[%emt 0:02:01]} Qxe5 {[%emt 0:00:07]} 25. a4 {[%emt 0:00:09]} a6 {[%emt 0:05:03]} 26. axb5 {[%emt 0:00:42]} axb5 {[%emt 0:00:05]} 27. Ra5 {[%emt 0:00:17]} Qb8 {[%emt 0:00:45]} 28. Qb1 {[%emt 0:03:45]} Bd6 {[%emt 0:00:41]} 29. Nd1 {[%emt 0:04:21]} Rc6 {[%emt 0:06:19]} 30. Qa2 {[%emt 0:02:16]} Be6 {[%emt 0:00:13]} 31. Qa1 {[%emt 0:00:16]} Be5 {[%emt 0:00:54]} 32. Rf3 {[%emt 0:01:19]} Rc2 {[%emt 0:00:39]} 33. Ra2 {[%emt 0:00:18]} Rxa2 {[%emt 0:00:07]} 0-1